bitfinex/quotes_BTCUSD_20250331
["timestamp","ask_amount","ask_price","bid_price","bid_amount"]
[1743384418783,0.00511105,82439.0,82438.0,0.00046898]
[1743384418963,0.00511105,82439.0,82438.0,0.00546898]
[1743384419142,0.012129,82442.0,82438.0,0.00546898]
[1743384419349,0.01724105,82439.0,82438.0,0.00546898]
[1743384419544,0.01213,82439.0,82438.0,0.00046898]
[1743384419751,0.01724105,82439.0,82438.0,0.00346898]
[1743384420381,0.00511105,82439.0,82438.0,0.00346898]
[1743384420585,0.01724105,82439.0,82438.0,0.00346898]
[1743384421011,0.01213,82439.0,82438.0,0.00346898]
[1743384421397,0.242563,82453.0,82438.0,0.00346898]
[1743384421598,0.01213,82440.0,82438.0,0.00346898]
[1743384421772,0.254733,82439.0,82438.0,0.00346898]
[1743384421975,0.254733,82439.0,82438.0,0.00046898]
[1743384422592,0.554733,82439.0,82438.0,0.00546898]
[1743384422996,0.554733,82439.0,82438.0,0.00046898]
[1743384423521,0.554733,82439.0,82438.0,0.00346898]
[1743384423927,0.2549008,82439.0,82438.0,0.00346898]
[1743384425181,0.0001678,82439.0,82438.0,0.00346898]
[1743384425382,0.0122978,82439.0,82438.0,0.00346898]
[1743384426994,0.0122978,82439.0,82438.0,9.8e-07]
[1743384427608,0.1954178,82439.0,82438.0,9.8e-07]
[1743384427902,0.5204178,82439.0,82438.0,9.8e-07]
[1743384428118,0.64070263,82439.0,82438.0,9.8e-07]
[1743384428889,0.254835,82406.0,82402.0,0.01845292]
[1743384429084,0.254844,82403.0,82402.0,0.01845292]
[1743384429283,0.254844,82403.0,82402.0,0.01892275]
[1743384429492,0.254844,82403.0,82402.0,0.00046983]
[1743384430124,0.27211947,82403.0,82402.0,0.00046983]
[1743384430330,0.35029792,82403.0,82402.0,0.00046983]
[1743384430972,0.65029792,82403.0,82402.0,0.00246983]
[1743384431123,0.57211947,82403.0,82402.0,0.00246983]
[1743384431322,0.59113291,82403.0,82402.0,0.00246983]
[1743384432009,0.59113291,82403.0,82402.0,0.00046983]
[1743384432219,0.242764,82385.0,82379.0,0.63024543]
[1743384432415,0.242777,82380.0,82379.0,0.63071552]
[1743384432657,0.242768,82384.0,82379.0,0.69378707]
[1743384432870,0.242768,82384.0,82383.0,0.005]
[1743384433363,0.242768,82384.0,82379.0,0.68878707]
[1743384433364,0.254915,82380.0,82379.0,0.00047009]
[1743384433512,0.254915,82380.0,82365.0,0.0003356]
[1743384433513,0.554958,82366.0,82365.0,0.0003356]
[1743384433684,0.554958,82366.0,82365.0,0.00080618]
[1743384434104,0.554958,82366.0,82365.0,1.8e-07]
[1743384434512,0.57398301,82366.0,82365.0,1.8e-07]
[1743384434715,0.58293503,82366.0,82365.0,1.8e-07]
[1743384435171,0.62487835,82366.0,82365.0,1.8e-07]
[1743384435414,0.58293503,82366.0,82365.0,1.8e-07]
[1743384436153,0.58293503,82366.0,82365.0,0.00100018]
[1743384436396,0.76255803,82366.0,82365.0,0.00100018]
[1743384436631,0.58293503,82366.0,82365.0,1.8e-07]
[1743384437062,0.58293503,82366.0,82365.0,0.00100018]
[1743384437063,0.56391002,82366.0,82365.0,0.00100018]
[1743384437472,0.68419485,82366.0,82365.0,1.8e-07]
[1743384437833,0.56391002,82366.0,82365.0,1.8e-07]
[1743384438987,0.56391002,82366.0,82341.0,0.004]
[1743384438988,0.242793,82375.0,82364.0,0.012141]
[1743384439325,0.24281,82369.0,82367.0,0.005]
[1743384439535,0.25495,82369.0,82368.0,0.005]
[1743384439906,0.242818,82366.0,82365.0,0.077]
[1743384440173,0.254984,82358.0,82357.0,0.0472]
[1743384440389,0.242871,82348.0,82345.0,0.63127111]
[1743384441386,0.012143,82346.0,82345.0,0.63127111]
[1743384441617,0.26189436,82348.0,82345.0,0.63127111]
[1743384442408,0.242877,82346.0,82345.0,0.63127111]
[1743384442614,0.25502,82346.0,82345.0,0.63127111]
[1743384442814,0.33585584,82346.0,82345.0,0.00447111]
[1743384443243,0.33585584,82346.0,82345.0,0.00047111]
[1743384443644,0.345107,82346.0,82345.0,0.00047111]
[1743384443863,0.345107,82346.0,82345.0,0.00447111]
[1743384444050,0.26427116,82346.0,82345.0,0.00447111]
[1743384444272,0.28132966,82346.0,82345.0,0.00447111]
[1743384445167,0.58132966,82346.0,82345.0,1.1e-07]
[1743384445369,0.255033,82342.0,82341.0,1.1e-07]
[1743384445574,0.6615754,82342.0,82341.0,0.00047194]
[1743384445788,0.255095,82322.0,82321.0,0.63044094]
[1743384445993,0.255095,82322.0,82321.0,0.00047195]
[1743384446605,0.27412533,82322.0,82321.0,0.00047195]
[1743384447023,0.255095,82322.0,82321.0,0.00047195]
[1743384448259,0.255095,82322.0,82321.0,0.00247195]
[1743384448534,0.37135529,82331.0,82321.0,0.00247195]
[1743384448535,0.0170585,82346.0,82329.0,0.012146]
[1743384448724,0.012144,82343.0,82329.0,0.012146]
[1743384448924,0.012144,82339.0,82323.0,0.247092]
[1743384449108,0.012145,82338.0,82324.0,0.012147]
[1743384449489,0.012145,82333.0,82324.0,0.012147]
[1743384449689,0.255061,82333.0,82324.0,0.012147]
[1743384450103,0.01902832,82331.0,82330.0,0.242924]
[1743384450257,0.01902832,82331.0,82330.0,0.30347]
[1743384450463,0.01902832,82331.0,82330.0,0.3940181]
[1743384451909,0.01902832,82331.0,82330.0,0.060546]
[1743384452130,0.02002832,82331.0,82330.0,0.065546]
[1743384453452,0.02002832,82331.0,82330.0,0.0534]
[1743384454583,0.02002832,82331.0,82330.0,0.05000115]
[1743384454797,0.0160819,82352.0,82337.0,0.012145]
[1743384454995,0.24287,82349.0,82340.0,0.255038]
[1743384455199,0.255013,82349.0,82341.0,0.012144]
[1743384455452,0.012143,82346.0,82336.0,0.012145]
[1743384455617,0.012145,82336.0,82328.0,0.012146]
[1743384455819,0.242901,82338.0,82325.0,0.0797]
[1743384455820,0.012145,82338.0,82325.0,0.0797]
[1743384456028,0.012144,82340.0,82331.0,0.012146]
[1743384456403,0.255026,82345.0,82334.0,0.012145]
[1743384456605,0.242895,82340.0,82331.0,0.05901432]
[1743384457003,0.255036,82341.0,82332.0,0.012145]
[1743384457231,0.255032,82343.0,82333.0,0.242915]
[1743384457429,0.012144,82342.0,82333.0,0.25506]
[1743384457608,0.012144,82340.0,82334.0,0.08813605]
[1743384457812,0.012144,82340.0,82332.0,0.012145]
[1743384457813,0.012143,82351.0,82339.0,0.255042]
[1743384458180,0.0001678,82366.0,82341.0,0.012144]
[1743384458181,0.242855,82354.0,82341.0,0.012144]
[1743384458297,0.242855,82354.0,82331.0,0.05901432]
[1743384458298,0.242877,82346.0,82339.0,0.242898]
[1743384458703,0.012143,82347.0,82339.0,0.255042]
[1743384459538,0.012143,82347.0,82339.0,0.260042]
[1743384459958,0.012143,82348.0,82340.0,0.012144]
[1743384460155,0.242866,82350.0,82341.0,0.242892]
[1743384460407,0.01614212,82352.0,82344.0,0.012144]
[1743384460598,0.012143,82351.0,82343.0,0.012144]
[1743384460840,0.255005,82351.0,82343.0,0.012144]
[1743384461296,0.01629721,82352.0,82348.0,0.012143]
[1743384461503,0.012142,82354.0,82347.0,0.012143]
[1743384461731,0.01902423,82353.0,82346.0,0.012143]
[1743384461933,0.242845,82357.0,82346.0,0.012143]
[1743384461934,0.012138,82380.0,82367.0,0.00232252]
[1743384462104,0.012139,82373.0,82367.0,0.00232252]
[1743384462309,0.012138,82380.0,82372.0,0.2428]
[1743384462652,0.012138,82380.0,82372.0,0.00232252]
[1743384462653,0.012139,82378.0,82372.0,0.00232252]
[1743384462862,0.254928,82376.0,82372.0,0.00232252]
[1743384463090,0.254936,82374.0,82372.0,0.00232252]
[1743384463288,0.242809,82370.0,82367.0,0.00279447]
[1743384464224,0.254949,82370.0,82367.0,0.00279447]
[1743384464433,0.242783,82378.0,82372.0,0.00232252]
[1743384464646,0.012139,82377.0,82373.0,0.00232252]
[1743384465283,0.012139,82374.0,82373.0,0.00232252]
[1743384465496,0.254934,82374.0,82373.0,0.00232252]
[1743384466264,0.254934,82374.0,82373.0,0.00432252]
[1743384466649,0.012139,82375.0,82373.0,0.00432252]
[1743384466854,0.242777,82380.0,82377.0,0.00232252]
[1743384467080,0.012137,82387.0,82377.0,0.00232252]
[1743384467335,0.012138,82385.0,82378.0,0.012139]
[1743384467551,0.254903,82385.0,82377.0,0.00232252]
[1743384467905,0.242744,82392.0,82377.0,0.00232252]
[1743384468243,0.00912418,82391.0,82379.0,0.00232252]
[1743384468379,0.00912418,82391.0,82379.0,0.01446152]
[1743384468574,0.25487,82395.0,82380.0,0.012138]
[1743384468776,0.254864,82397.0,82382.0,0.242771]
[1743384468987,0.012136,82396.0,82387.0,0.012137]
[1743384469192,0.001,82391.0,82387.0,0.012137]
[1743384469933,0.001,82391.0,82388.0,0.242753]
[1743384470140,0.001,82391.0,82390.0,0.25720652]
[1743384470570,0.01901738,82394.0,82393.0,0.254875]
[1743384470769,0.003,82397.0,82393.0,0.254875]
[1743384471115,0.003,82397.0,82390.0,0.01445952]
[1743384471277,0.242721,82400.0,82370.0,0.1774]
[1743384471278,0.012138,82383.0,82370.0,0.1774]
[1743384471487,0.012138,82381.0,82379.0,0.00232252]
[1743384471687,0.242771,82382.0,82372.0,0.00047195]
[1743384471688,0.012139,82373.0,82372.0,0.00047195]
[1743384472087,0.012138,82380.0,82372.0,0.00047195]
[1743384472088,0.242767,82384.0,82381.0,0.00232252]
[1743384472285,0.254909,82382.0,82381.0,0.00232252]
[1743384472950,0.01901832,82389.0,82388.0,0.01445952]
[1743384473154,0.012135,82400.0,82393.0,0.012136]
[1743384473367,0.01901695,82402.0,82396.0,0.00232252]
[1743384473508,0.01901695,82402.0,82401.0,0.012135]
[1743384473711,0.27857406,82416.0,82401.0,0.012135]
[1743384473712,0.012133,82415.0,82406.0,0.00232252]
[1743384473927,0.016133,82419.0,82399.0,0.00232252]
[1743384473928,0.012135,82403.0,82399.0,0.00232252]
[1743384474127,0.254847,82402.0,82399.0,0.00232252]
[1743384474301,0.012136,82396.0,82388.0,0.01445952]
[1743384474507,0.012136,82395.0,82388.0,0.00232252]
[1743384474733,0.012137,82391.0,82388.0,0.00279447]
[1743384474951,0.012136,82393.0,82388.0,0.00279447]
[1743384475091,0.012137,82389.0,82388.0,0.00279447]
[1743384475942,0.012137,82389.0,82388.0,0.00679447]
[1743384476203,0.012137,82389.0,82388.0,0.00447195]
[1743384476381,0.012138,82384.0,82383.0,0.63001195]
[1743384476552,0.254903,82384.0,82383.0,0.63001195]
[1743384476756,0.254934,82374.0,82373.0,0.0003354]
[1743384477532,0.242785,82378.0,82373.0,0.0003354]
[1743384477729,0.26776364,82389.0,82383.0,0.012138]
[1743384477730,0.00047035,82389.0,82383.0,0.012138]
[1743384477936,0.012138,82383.0,82382.0,0.00232252]
[1743384478152,0.01260735,82389.0,82387.0,0.00232252]
[1743384478345,0.01260735,82389.0,82374.0,0.242794]
[1743384478346,0.012139,82375.0,82374.0,0.00232252]
[1743384478559,0.012139,82374.0,82369.0,0.00232252]
[1743384478889,0.012139,82374.0,82373.0,0.0053354]
[1743384480083,0.03116084,82374.0,82373.0,0.0003354]
[1743384481126,0.33116084,82374.0,82373.0,0.0003354]
[1743384482737,0.34011648,82374.0,82373.0,0.0003354]
[1743384483346,0.34211648,82374.0,82373.0,0.0003354]
[1743384484167,0.34011648,82374.0,82373.0,0.0003354]
[1743384484369,0.34111648,82374.0,82373.0,0.0003354]
[1743384484913,0.04111648,82374.0,82373.0,0.0003354]
[1743384485219,0.02002184,82374.0,82373.0,0.0003354]
[1743384485451,0.03216084,82374.0,82373.0,0.0003354]
[1743384486254,0.03216084,82374.0,82373.0,4e-07]
[1743384486255,0.313139,82374.0,82373.0,4e-07]
[1743384486449,0.42185369,82374.0,82373.0,4e-07]
[1743384486856,0.42085369,82374.0,82373.0,4e-07]
[1743384487379,0.42085369,82374.0,82373.0,0.0010004]
[1743384487582,0.012143,82349.0,82346.0,0.0751]
[1743384487804,0.012143,82349.0,82340.0,0.00232252]
[1743384487805,0.012144,82341.0,82340.0,0.00232252]
[1743384488010,0.255039,82340.0,82337.0,0.0456]
[1743384488204,0.012145,82338.0,82337.0,0.04792252]
[1743384488418,0.012145,82336.0,82335.0,0.63312252]
[1743384488653,0.242904,82337.0,82335.0,0.63312252]
[1743384488851,0.0164522,82336.0,82335.0,0.63312252]
[1743384489023,0.00047006,82336.0,82335.0,0.63312252]
[1743384489426,0.01261506,82336.0,82335.0,0.63312252]
[1743384489880,0.02855359,82336.0,82335.0,0.63312252]
[1743384490049,0.02855359,82336.0,82335.0,0.6308]
[1743384490204,0.02855359,82336.0,82335.0,0.63312252]
[1743384490412,0.02855359,82336.0,82335.0,0.6338]
[1743384490756,0.02855359,82336.0,82335.0,0.63612252]
[1743384490903,0.02855359,82336.0,82335.0,0.003]
[1743384491841,0.01640859,82336.0,82335.0,0.00532252]
[1743384492388,0.02855359,82336.0,82335.0,0.00532252]
[1743384492765,0.01640859,82336.0,82335.0,0.00532252]
[1743384493221,0.02855359,82336.0,82335.0,0.00232252]
[1743384493423,0.02855359,82336.0,82335.0,0.00432252]
[1743384493985,0.00047006,82336.0,82335.0,0.00432252]
[1743384494171,0.00047006,82336.0,82335.0,0.10209663]
[1743384494529,0.00047006,82336.0,82335.0,0.09966752]
[1743384495111,0.00047006,82336.0,82335.0,0.20974677]
[1743384495311,0.00047006,82336.0,82335.0,0.14876752]
[1743384496072,0.00047006,82336.0,82335.0,0.14676752]
[1743384496222,0.00047006,82336.0,82335.0,0.13462252]
[1743384496421,0.00047006,82336.0,82335.0,0.13862252]
[1743384496827,0.00047006,82336.0,82323.0,0.0003358]
[1743384496828,0.255079,82327.0,82326.0,0.00232252]
[1743384497243,0.012145,82333.0,82326.0,0.00232252]
[1743384497408,0.012145,82332.0,82326.0,0.00232252]
[1743384497981,0.012146,82327.0,82326.0,0.00232252]
[1743384498694,0.242931,82328.0,82327.0,0.00232252]
[1743384500303,0.255077,82328.0,82327.0,0.00232252]
[1743384500505,0.255077,82328.0,82323.0,0.0835358]
[1743384500506,0.242942,82324.0,82323.0,0.00265832]
[1743384501162,0.255089,82324.0,82323.0,0.00265832]
[1743384501457,0.242942,82324.0,82323.0,0.00265832]
[1743384501611,0.242942,82324.0,82323.0,0.00865832]
[1743384502216,0.27119876,82324.0,82323.0,0.00865832]
[1743384502416,0.242942,82324.0,82323.0,0.00865832]
[1743384502925,0.27100332,82324.0,82323.0,0.00865832]
[1743384503114,0.255089,82324.0,82323.0,0.00865832]
[1743384503316,0.242942,82324.0,82323.0,0.00265832]
[1743384503510,0.255089,82324.0,82323.0,0.00665832]
[1743384503913,0.242942,82324.0,82323.0,0.00665832]
[1743384504501,0.27411826,82324.0,82323.0,0.00665832]
[1743384505472,0.29063959,82324.0,82323.0,0.00665832]
[1743384505892,0.29063959,82324.0,82323.0,0.0043358]
[1743384506088,0.59063959,82324.0,82323.0,0.0043358]
[1743384506439,0.6144636,82324.0,82323.0,0.0043358]
[1743384507014,0.59543434,82324.0,82323.0,0.0003358]
[1743384507342,0.59543434,82324.0,82323.0,0.0013358]
[1743384507496,0.71571917,82324.0,82323.0,0.0013358]
[1743384507691,0.71571917,82324.0,82323.0,0.0003358]
[1743384508547,0.59543434,82324.0,82323.0,0.0003358]
[1743384509157,0.59643434,82324.0,82323.0,0.0003358]
[1743384509962,0.61546636,82324.0,82323.0,0.0003358]
[1743384510865,0.61546636,82324.0,82323.0,8e-07]
[1743384511035,0.580125,82312.0,82311.0,8e-07]
[1743384511271,0.750845,82312.0,82311.0,8e-07]
[1743384511783,0.76988195,82312.0,82311.0,8e-07]
[1743384512193,0.57416195,82312.0,82311.0,8e-07]
[1743384512627,0.57916195,82312.0,82311.0,0.0010008]
[1743384512840,0.5884098,82312.0,82311.0,0.0010008]
[1743384513041,0.5834098,82312.0,82311.0,8e-07]
[1743384513241,0.5884098,82312.0,82311.0,0.0010008]
[1743384513905,0.5834098,82312.0,82311.0,8e-07]
[1743384514105,0.70769463,82312.0,82311.0,8e-07]
[1743384514266,0.5874098,82312.0,82311.0,8e-07]
[1743384517157,0.56837285,82312.0,82311.0,8e-07]
[1743384520131,0.58740845,82312.0,82311.0,8e-07]
[1743384520749,0.58740845,82312.0,82296.0,0.0003358]
[1743384520750,0.55516,82301.0,82296.0,0.0003358]
[1743384520947,0.6131059,82301.0,82296.0,0.0003358]
[1743384521342,0.25519,82291.0,82290.0,6e-07]
[1743384521784,0.26433727,82291.0,82290.0,6e-07]
[1743384521970,0.56433727,82291.0,82290.0,6e-07]
[1743384522205,0.56480675,82291.0,82290.0,6e-07]
[1743384522408,0.012152,82290.0,82289.0,0.0002964]
[1743384522528,0.312152,82290.0,82289.0,0.0002964]
[1743384522739,0.555219,82282.0,82281.0,3.22e-05]
[1743384524112,0.57426004,82282.0,82281.0,3.22e-05]
[1743384524512,0.27426004,82282.0,82281.0,3.22e-05]
[1743384524826,0.28970719,82282.0,82281.0,3.22e-05]
[1743384525270,0.34541461,82282.0,82281.0,3.22e-05]
[1743384525625,0.28970719,82282.0,82281.0,3.22e-05]
[1743384527028,0.27066615,82282.0,82281.0,3.22e-05]
[1743384528683,0.29534949,82282.0,82281.0,3.22e-05]
[1743384529163,0.04013049,82282.0,82281.0,3.22e-05]
[1743384529367,0.02468334,82282.0,82281.0,3.22e-05]
[1743384529591,0.27990234,82282.0,82281.0,3.22e-05]
[1743384529797,0.255219,82282.0,82281.0,3.22e-05]
[1743384530019,0.27426037,82282.0,82281.0,3.22e-05]
[1743384530200,0.26210737,82282.0,82281.0,3.22e-05]
[1743384530602,0.27426037,82282.0,82281.0,3.22e-05]
[1743384532261,0.26210737,82282.0,82281.0,3.22e-05]
[1743384532460,0.27426037,82282.0,82281.0,3.22e-05]
[1743384533476,0.27426037,82282.0,82281.0,0.0003692]
[1743384533822,0.27442887,82282.0,82281.0,0.0003692]
[1743384537229,0.2553875,82282.0,82281.0,0.0003692]
[1743384538338,0.5553875,82282.0,82281.0,0.0003692]
[1743384538576,0.5553875,82282.0,82281.0,2e-07]
[1743384539156,0.255247,82273.0,82272.0,0.0109805]
[1743384540157,0.27428923,82273.0,82272.0,0.0109805]
[1743384540472,0.01171173,82273.0,82272.0,0.0109805]
[1743384540778,0.02386573,82273.0,82272.0,0.0109805]
[1743384540974,0.26695873,82273.0,82272.0,0.0109805]
[1743384541680,0.26695873,82273.0,82272.0,0.0129805]
[1743384542033,0.26695873,82273.0,82272.0,0.0109805]
[1743384545331,0.26695873,82273.0,82272.0,0.0119805]
[1743384545461,0.26695873,82273.0,82272.0,0.0123175]
[1743384545665,0.01171173,82273.0,82272.0,0.02679402]
[1743384545891,0.01188023,82273.0,82272.0,0.09184002]
[1743384546627,0.25497323,82273.0,82272.0,0.09184002]
[1743384546818,0.01188023,82273.0,82272.0,0.09184002]
[1743384547047,0.0001685,82273.0,82272.0,0.09184002]
[1743384547492,0.2432615,82273.0,82272.0,0.09184002]
[1743384549621,0.0001685,82273.0,82272.0,0.09184002]
[1743384550427,0.0001685,82273.0,82272.0,0.33493602]
[1743384550634,0.0001685,82273.0,82272.0,0.09184002]
[1743384551062,0.0001685,82273.0,82272.0,0.09084002]
[1743384551270,0.0001685,82273.0,82272.0,0.09284002]
[1743384551490,0.01920897,82273.0,82272.0,0.09284002]
[1743384551702,0.0001685,82273.0,82272.0,0.16473487]
[1743384551927,0.0001685,82273.0,82272.0,0.16716533]
[1743384552128,0.0001685,82273.0,82272.0,0.54862809]
[1743384552527,0.0001685,82273.0,82272.0,0.66691292]
[1743384552863,0.0001685,82282.0,82281.0,0.39448537]
[1743384553028,0.0001685,82282.0,82281.0,0.55768537]
[1743384555052,0.0001685,82282.0,82281.0,0.55668537]
[1743384555944,0.0011685,82282.0,82281.0,0.58632361]
[1743384556567,0.0011685,82282.0,82281.0,0.30646337]
[1743384556777,0.0011685,82282.0,82281.0,0.29192252]
[1743384556979,0.0011685,82282.0,82281.0,0.14087552]
[1743384557180,0.0011685,82282.0,82281.0,0.12872252]
[1743384557569,0.0011685,82282.0,82281.0,0.37179152]
[1743384557809,0.0011685,82282.0,82281.0,0.21009527]
[1743384557982,0.2442345,82282.0,82281.0,0.12872252]
[1743384558212,0.0011685,82282.0,82281.0,0.14087552]
[1743384558385,0.0011685,82282.0,82281.0,0.12872252]
[1743384558748,0.0011685,82282.0,82281.0,0.14087552]
[1743384559346,0.0011685,82282.0,82281.0,0.22224967]
[1743384559559,0.0011685,82282.0,82281.0,0.46531867]
[1743384560224,0.0011685,82282.0,82281.0,0.38394452]
[1743384560415,0.0011685,82282.0,82281.0,0.12872252]
[1743384561605,0.0011685,82282.0,82281.0,0.14087552]
[1743384562467,0.0011685,82282.0,82281.0,0.31709637]
[1743384562612,0.0011685,82282.0,82281.0,1.12127442]
[1743384562816,0.00046948,82291.0,82290.0,0.40055737]
[1743384563058,0.00046948,82291.0,82290.0,1.1522822]
[1743384564038,0.00046948,82291.0,82290.0,1.17609557]
[1743384564248,0.00046948,82291.0,82290.0,1.18209557]
[1743384564440,0.00046948,82291.0,82290.0,1.06181074]
[1743384564639,0.00046948,82291.0,82290.0,1.18209557]
[1743384568743,0.24350848,82291.0,82290.0,0.63876252]
[1743384568951,0.00046948,82291.0,82290.0,0.63876252]
[1743384569566,0.00046948,82291.0,82290.0,0.88180452]
[1743384569796,0.00063798,82291.0,82290.0,0.89395652]
[1743384569972,0.00063798,82291.0,82290.0,1.01130307]
[1743384570202,0.00063798,82291.0,82290.0,1.02584392]
[1743384570517,0.00063798,82291.0,82290.0,0.89502285]
[1743384570716,0.00063798,82291.0,82290.0,0.89634537]
[1743384570963,0.00063798,82291.0,82290.0,0.64730337]
[1743384571174,0.00063798,82291.0,82290.0,0.64891452]
[1743384571437,0.01967481,82291.0,82290.0,0.89195652]
[1743384571613,0.01967481,82291.0,82290.0,1.01224135]
[1743384571791,0.01967481,82291.0,82290.0,1.00824135]
[1743384572192,0.01967481,82291.0,82290.0,1.01424135]
[1743384572769,0.01967481,82291.0,82290.0,0.89395652]
[1743384573183,0.01967481,82291.0,82290.0,0.63876252]
[1743384573391,0.01967481,82291.0,82290.0,0.65091452]
[1743384573668,0.01967481,82291.0,82290.0,0.66545537]
[1743384574431,0.01967481,82291.0,82290.0,0.74415537]
[1743384574630,0.01967481,82291.0,82290.0,0.8644402]
[1743384577134,0.00063798,82291.0,82290.0,0.8644402]
[1743384577380,0.00063798,82291.0,82290.0,1.03022503]
[1743384579037,0.00063798,82291.0,82290.0,1.34475779]
[1743384579262,0.00063798,82291.0,82290.0,1.50443779]
[1743384579698,9.8e-07,82291.0,82290.0,1.50443779]
[1743384579872,9.8e-07,82291.0,82290.0,1.53870053]
[1743384580265,9.8e-07,82291.0,82290.0,1.53270053]
[1743384581019,9.8e-07,82291.0,82290.0,1.50736121]
[1743384581218,9.8e-07,82291.0,82290.0,1.53836121]
[1743384581781,9.8e-07,82291.0,82290.0,1.53236121]
[1743384583042,9.8e-07,82291.0,82290.0,1.53836121]
[1743384586626,9.8e-07,82291.0,82290.0,1.54336121]
[1743384586796,0.01920163,82312.0,82311.0,0.25645152]
[1743384587007,0.01920163,82312.0,82311.0,1.02990775]
[1743384587008,0.0001684,82312.0,82311.0,1.02990775]
[1743384588148,0.0001684,82312.0,82311.0,1.03590775]
[1743384588684,4e-07,82312.0,82311.0,1.03590775]
[1743384588876,4e-07,82312.0,82311.0,1.08980768]
[1743384589357,4e-07,82312.0,82311.0,1.08380768]
[1743384589717,4e-07,82312.0,82311.0,1.08980768]
[1743384590345,4e-07,82312.0,82311.0,1.08380768]
[1743384590562,4e-07,82312.0,82311.0,1.08980768]
[1743384591833,4e-07,82312.0,82311.0,1.09900225]
[1743384592051,4e-07,82312.0,82311.0,0.91036225]
[1743384592245,4e-07,82312.0,82311.0,1.06792225]
[1743384592398,4e-07,82312.0,82311.0,1.06659973]
[1743384592600,4e-07,82312.0,82311.0,1.06792225]
[1743384592814,4e-07,82312.0,82311.0,1.06788225]
[1743384593018,4e-07,82312.0,82311.0,0.88662683]
[1743384593182,4e-07,82312.0,82311.0,1.03806683]
[1743384593383,4e-07,82312.0,82311.0,1.05860768]
[1743384593582,4e-07,82312.0,82311.0,1.71472768]
[1743384594189,4e-07,82312.0,82311.0,1.70872768]
[1743384594830,4e-07,82312.0,82311.0,1.71797976]
[1743384595182,4e-07,82312.0,82311.0,1.72297976]
[1743384595390,4e-07,82312.0,82311.0,1.73187354]
[1743384595693,4e-07,82312.0,82311.0,1.73787354]
[1743384596026,4e-07,82312.0,82311.0,1.73187354]
[1743384596365,4e-07,82312.0,82311.0,1.73787354]
[1743384598706,4e-07,82312.0,82311.0,1.86617354]
[1743384598845,4e-07,82312.0,82311.0,1.86017354]
[1743384599101,4e-07,82312.0,82311.0,1.86617354]
[1743384599608,4e-07,82312.0,82311.0,1.86017354]
[1743384599943,4e-07,82312.0,82311.0,1.86617354]
[1743384601059,0.0001684,82356.0,82355.0,0.25631552]
[1743384601263,0.0001684,82356.0,82355.0,0.50080149]
[1743384601611,0.01919053,82356.0,82355.0,0.50080149]
[1743384601818,0.03133253,82356.0,82355.0,0.00132252]
[1743384601977,0.03133253,82356.0,82342.0,0.00132252]
[1743384601978,0.242887,82343.0,82342.0,0.00132252]
[1743384602185,0.242877,82346.0,82342.0,0.00132252]
[1743384602383,0.242877,82346.0,82342.0,0.00136952]
[1743384602720,0.254999,82353.0,82344.0,0.255027]
[1743384602934,0.3836584,82356.0,82342.0,0.00136952]
[1743384602935,0.1286684,82356.0,82353.0,0.242856]
[1743384603127,0.1286684,82356.0,82355.0,0.00132252]
[1743384603334,0.1286684,82356.0,82346.0,0.012143]
[1743384603535,0.012142,82354.0,82353.0,0.00132252]
[1743384603748,0.242859,82352.0,82351.0,0.00132252]
[1743384604436,0.255001,82352.0,82351.0,0.00132252]
[1743384604642,0.242854,82354.0,82351.0,0.00132252]
[1743384605468,0.242859,82352.0,82351.0,0.00132252]
[1743384605670,0.255001,82352.0,82351.0,0.00132252]
[1743384605897,0.255017,82347.0,82346.0,0.00132252]
[1743384606023,0.242867,82350.0,82343.0,0.00132252]
[1743384606229,0.242864,82351.0,82344.0,0.02921545]
[1743384606409,0.242857,82353.0,82346.0,0.255018]
[1743384606645,0.01902476,82349.0,82345.0,0.012144]
[1743384606849,0.01902476,82349.0,82344.0,0.36289645]
[1743384607075,0.242871,82348.0,82344.0,0.10787145]
[1743384607280,0.242856,82353.0,82344.0,0.333682]
[1743384607524,0.012144,82345.0,82344.0,0.09212252]
[1743384607702,0.255024,82345.0,82344.0,0.0908]
[1743384608712,0.242874,82347.0,82344.0,0.09212252]
[1743384608917,0.012144,82345.0,82344.0,0.09812252]
[1743384609401,0.012144,82345.0,82344.0,0.09212252]
[1743384609982,0.012144,82345.0,82344.0,0.0918]
[1743384610262,0.5142483,82345.0,82344.0,0.0918]
[1743384610618,0.53327738,82345.0,82344.0,0.0918]
[1743384610822,0.45677308,82345.0,82344.0,0.0908]
[1743384612277,0.45677308,82345.0,82344.0,0.0938]
[1743384612684,0.45677308,82345.0,82344.0,0.0908]
[1743384615156,0.012144,82343.0,82342.0,1e-06]
[1743384615361,0.312144,82343.0,82342.0,1e-06]
[1743384615827,0.16218357,82343.0,82342.0,1e-06]
[1743384616143,0.012144,82343.0,82342.0,1e-06]
[1743384616341,0.012144,82343.0,82312.0,0.0003368]
[1743384616342,0.242974,82313.0,82312.0,0.0003368]
[1743384616552,0.255122,82313.0,82312.0,0.00045157]
[1743384617939,0.56442056,82313.0,82312.0,0.00045157]
[1743384618970,0.56442056,82313.0,82312.0,5.7e-07]
[1743384618971,0.69945221,82313.0,82312.0,5.7e-07]
[1743384619172,0.78145221,82313.0,82312.0,5.7e-07]
[1743384619796,0.66116738,82313.0,82312.0,5.7e-07]
[1743384620160,0.68020428,82313.0,82312.0,5.7e-07]
[1743384622085,0.04308228,82313.0,82312.0,5.7e-07]
[1743384622374,0.03378372,82313.0,82312.0,5.7e-07]
[1743384622576,0.04593172,82313.0,82312.0,5.7e-07]
[1743384622754,0.34593172,82313.0,82312.0,5.7e-07]
[1743384623740,0.25512,82314.0,82312.0,5.7e-07]
[1743384623945,0.012148,82313.0,82312.0,5.7e-07]
[1743384624351,0.06528922,82313.0,82312.0,5.7e-07]
[1743384624529,0.012148,82313.0,82312.0,5.7e-07]
[1743384624728,0.02671599,82313.0,82312.0,5.7e-07]
[1743384625016,0.012148,82313.0,82312.0,5.7e-07]
[1743384625399,0.012148,82313.0,82312.0,0.00100057]
[1743384625611,0.02706376,82313.0,82312.0,0.00100057]
[1743384625799,0.32706376,82313.0,82312.0,5.7e-07]
[1743384628596,0.255187,82292.0,82291.0,0.000337]
[1743384628795,0.255187,82292.0,82291.0,0.00045727]
[1743384629354,0.637987,82292.0,82291.0,0.00045727]
[1743384629775,0.637987,82292.0,82291.0,0.00345727]
[1743384630018,0.75827183,82292.0,82291.0,2.7e-07]
[1743384630426,0.555216,82283.0,82282.0,0.000337]
[1743384630631,0.555216,82283.0,82282.0,0.00080648]
[1743384631043,0.543063,82283.0,82282.0,0.00080648]
[1743384631239,0.3,82283.0,82282.0,0.00080648]
[1743384631474,0.543061,82284.0,82282.0,0.00080648]